[Event "SS Manhem Chess Week 2019 GM and IM tournaments"]
[Site "Molnlycke kulturhus, Biblioteksgatan 2, Molnlycke, Sweden"]
[Date "2019.08.16"]
[Round "9.10"]
[White "Hill, Alistair"]
[Black "Kucuksari, Kaan"]
[Result "0-1"]
[TimeControl "90 minutes for 40 moves + 30 minutes for the rest of the game + 30 seconds per move from move one."]
[BlackTitle "FM"]
[WhiteFideId "432407"]
[BlackFideId "6380166"]
[WhiteElo "2224"]
[BlackElo "2286"]

1. Nf3 {[%clk 01:18:09]} {[%emt 00:12:51]} d5 {[%clk 01:30:02]} {[%emt
00:00:59]} 2. g3 {[%clk 01:17:49]} {[%emt 00:00:45]} Nf6 {[%clk 01:30:28]}
{[%emt 00:00:08]} 3. Bg2 {[%clk 01:18:16]} {[%emt 00:00:03]} e6 {[%clk
01:29:55]} {[%emt 00:01:04]} 4. O-O {[%clk 01:18:24]} {[%emt 00:00:21]} Be7
{[%clk 01:30:02]} {[%emt 00:00:23]} 5. c4 {[%clk 01:18:52]} {[%emt 00:00:02]}
O-O {[%clk 01:30:28]} {[%emt 00:00:04]} 6. b3 {[%clk 01:18:23]} {[%emt
00:00:58]} c5 {[%clk 01:29:26]} {[%emt 00:01:32]} 7. cxd5 {[%clk 01:17:53]}
{[%emt 00:01:00]} Nxd5 {[%clk 01:29:40]} {[%emt 00:00:16]} 8. Bb2 {[%clk
01:18:11]} {[%emt 00:00:12]} Nc6 {[%clk 01:29:42]} {[%emt 00:00:28]} 9. d4
{[%clk 01:17:06]} {[%emt 00:01:34]} Bf6 {[%clk 01:22:40]} {[%emt 00:07:33]} 10.
e4 {[%clk 01:07:54]} {[%emt 00:09:42]} Ndb4 {[%clk 01:20:10]} {[%emt 00:03:01]}
11. a3 {[%clk 00:52:11]} {[%emt 00:16:13]} Na6 {[%clk 01:20:38]} {[%emt
00:00:01]} 12. e5 {[%clk 00:52:37]} {[%emt 00:00:03]} Be7 {[%clk 01:21:05]}
{[%emt 00:00:04]} 13. Qc2 {[%clk 00:41:55]} {[%emt 00:11:12]} cxd4 {[%clk
01:15:24]} {[%emt 00:06:10]} 14. Rd1 {[%clk 00:41:14]} {[%emt 00:01:12]} Qc7
{[%clk 01:07:50]} {[%emt 00:08:04]} 15. Qe2 {[%clk 00:21:04]} {[%emt 00:20:40]}
Nc5 {[%clk 00:58:59]} {[%emt 00:09:21]} 16. Nbd2 {[%clk 00:21:31]} {[%emt
00:00:03]} Rd8 {[%clk 00:55:41]} {[%emt 00:03:48]} 17. Rac1 {[%clk 00:19:51]}
{[%emt 00:02:09]} a5 {[%clk 00:52:24]} {[%emt 00:03:47]} 18. Rc4 {[%clk
00:16:05]} {[%emt 00:04:17]} b5 {[%clk 00:43:04]} {[%emt 00:09:50]} 19. Nxd4
{[%clk 00:10:18]} {[%emt 00:06:16]} bxc4 {[%clk 00:38:40]} {[%emt 00:04:54]} 20.
Nxc6 {[%clk 00:10:42]} {[%emt 00:00:07]} Bb7 {[%clk 00:34:14]} {[%emt
00:04:56]} 21. Nxd8 {[%clk 00:10:56]} {[%emt 00:00:15]} Bxg2 {[%clk 00:34:40]}
{[%emt 00:00:04]} 22. Kxg2 {[%clk 00:11:22]} {[%emt 00:00:04]} cxb3 {[%clk
00:34:15]} {[%emt 00:00:55]} 23. Nxb3 {[%clk 00:05:09]} {[%emt 00:06:43]} Nxb3
{[%clk 00:27:08]} {[%emt 00:07:37]} 24. Qb5 {[%clk 00:05:37]} {[%emt 00:00:02]}
Nc5 {[%clk 00:18:51]} {[%emt 00:08:47]} 25. Nc6 {[%clk 00:05:54]} {[%emt
00:00:12]} Bf8 {[%clk 00:18:13]} {[%emt 00:01:09]} 26. Bd4 {[%clk 00:03:09]}
{[%emt 00:03:16]} Nb3 {[%clk 00:14:18]} {[%emt 00:04:25]} 27. Bb6 {[%clk
00:03:25]} {[%emt 00:00:14]} Qb7 {[%clk 00:14:28]} {[%emt 00:00:20]} 28. Kh3
{[%clk 00:01:14]} {[%emt 00:02:42]} h5 {[%clk 00:06:22]} {[%emt 00:08:36]} 29.
a4 {[%clk 00:00:41]} {[%emt 00:01:03]} Ra6 {[%clk 00:04:01]} {[%emt 00:02:51]}
30. Nd8 {[%clk 00:00:32]} {[%emt 00:00:39]} Qxb6 {[%clk 00:03:19]} {[%emt
00:01:12]} 31. Qe8 {[%clk 00:00:33]} {[%emt 00:00:29]} Ra7 {[%clk 00:01:38]}
{[%emt 00:02:11]} 32. Nc6 {[%clk 00:01:01]} {[%emt 00:00:01]} Rb7 {[%clk
00:00:37]} {[%emt 00:01:32]} 33. Rd8 {[%clk 00:00:53]} {[%emt 00:00:38]} Qc5
{[%clk 00:01:07]} {[%emt 00:00:01]} 34. Ra8 {[%clk 00:00:39]} {[%emt 00:00:43]}
Rc7 {[%clk 00:00:44]} {[%emt 00:00:53]} 35. Nd8 {[%clk 00:00:32]} {[%emt
00:00:37]} g5 {[%clk 00:00:36]} {[%emt 00:00:38]} 36. Rc8 {[%clk 00:00:33]}
{[%emt 00:00:29]} g4+ {[%clk 00:00:46]} {[%emt 00:00:20]} 37. Kg2 {[%clk
00:00:59]} {[%emt 00:00:04]} Qd5+ {[%clk 00:00:57]} {[%emt 00:00:19]} 38. Kg1
{[%clk 00:00:59]} {[%emt 00:00:29]} Qd1+ {[%clk 00:01:26]} {[%emt 00:00:01]} 39.
Kg2 {[%clk 00:01:27]} {[%emt 00:00:02]} Qf3+ {[%clk 00:01:45]} {[%emt
00:00:11]} 40. Kg1 {[%clk 00:01:55]} {[%emt 00:00:02]} Rxc8 {[%clk 00:02:03]}
{[%emt 00:00:12]} 0-1